[Event "*** Titled Tuesday Blitz"]
[Site "Chess.com"]
[Date "2020.05.26"]
[Round "8"]
[White "silverback96"]
[Black "nurmiTV"]
[Result "0-1"]
[WhiteElo "2315"]
[BlackElo "2501"]
[TimeControl "180+1"]
[EndTime "11:40:40 PDT"]
[Termination "nurmiTV won on time"]

1. e4 {[%clk 0:02:58.9]} 1... c5 {[%clk 0:02:59.9]} 2. Nf3 {[%clk 0:02:58.2]}
2... e6 {[%clk 0:03:00.1]} 3. d4 {[%clk 0:02:58.5]} 3... cxd4 {[%clk 0:03:01]}
4. Nxd4 {[%clk 0:02:59.4]} 4... a6 {[%clk 0:03:01.5]} 5. Nc3 {[%clk 0:02:59.8]}
5... Qc7 {[%clk 0:03:01.7]} 6. Bd3 {[%clk 0:02:59.6]} 6... Bc5 {[%clk
0:03:01.4]} 7. Nb3 {[%clk 0:02:58]} 7... Be7 {[%clk 0:03:01.2]} 8. f4 {[%clk
0:02:56.1]} 8... b5 {[%clk 0:02:59.8]} 9. a3 {[%clk 0:02:55.2]} 9... Bb7 {[%clk
0:02:59.6]} 10. Qe2 {[%clk 0:02:55]} 10... d6 {[%clk 0:02:59.2]} 11. Bd2 {[%clk
0:02:54.2]} 11... Nd7 {[%clk 0:02:58.5]} 12. g4 {[%clk 0:02:53.8]} 12... Bh4+
{[%clk 0:02:48.4]} 13. Kd1 {[%clk 0:02:51.6]} 13... Ne7 {[%clk 0:02:45.2]} 14.
g5 {[%clk 0:02:46.7]} 14... h6 {[%clk 0:02:43.9]} 15. Qh5 {[%clk 0:02:43]} 15...
Bf2 {[%clk 0:02:37.5]} 16. Rf1 {[%clk 0:02:35.8]} 16... Bb6 {[%clk 0:02:32.6]}
17. f5 {[%clk 0:02:36]} 17... exf5 {[%clk 0:02:28.2]} 18. exf5 {[%clk
0:02:36.9]} 18... Ne5 {[%clk 0:02:12.9]} 19. a4 {[%clk 0:01:40.2]} 19... b4
{[%clk 0:01:56.7]} 20. a5 {[%clk 0:01:40.5]} 20... Ba7 {[%clk 0:01:41.7]} 21. f6
{[%clk 0:01:12.3]} 21... g6 {[%clk 0:01:34.9]} 22. Qe2 {[%clk 0:01:08.2]} 22...
bxc3 {[%clk 0:01:34.2]} 23. fxe7 {[%clk 0:00:32.5]} 23... cxd2 {[%clk
0:01:32.9]} 24. Nxd2 {[%clk 0:00:30.9]} 24... hxg5 {[%clk 0:01:09.5]} 25. Ne4
{[%clk 0:00:31.2]} 25... Qxe7 {[%clk 0:01:00.5]} 26. Nf6+ {[%clk 0:00:30.4]}
26... Kf8 {[%clk 0:00:59.9]} 27. Bxa6 {[%clk 0:00:09.6]} 27... Bxa6 {[%clk
0:00:46.8]} 28. Qxa6 {[%clk 0:00:09]} 28... Kg7 {[%clk 0:00:37.6]} 29. Ra3
{[%clk 0:00:09.4]} 29... Bc5 {[%clk 0:00:33.5]} 30. Qe2 {[%clk 0:00:08]} 30...
Bxa3 {[%clk 0:00:32.7]} 31. bxa3 {[%clk 0:00:08.9]} 31... Rxa5 {[%clk
0:00:28.8]} 32. Qe4 {[%clk 0:00:04.2]} 32... Rh4 {[%clk 0:00:22.4]} 0-1

[Event "*** Titled Tuesday Blitz"]
[Site "Chess.com"]
[Date "2020.05.26"]
[Round "8"]
[White "mattcolins2025"]
[Black "Sweafty"]
[Result "1-0"]
[WhiteElo "2302"]
[BlackElo "2475"]
[TimeControl "180+1"]
[EndTime "11:40:43 PDT"]
[Termination "mattcolins2025 won by resignation"]

1. d4 {[%clk 0:03:00.9]} 1... Nf6 {[%clk 0:02:59.8]} 2. c4 {[%clk 0:03:01.2]}
2... e6 {[%clk 0:03:00]} 3. Nc3 {[%clk 0:03:01]} 3... Bb4 {[%clk 0:02:59.7]} 4.
Qc2 {[%clk 0:03:01]} 4... d5 {[%clk 0:02:59.4]} 5. a3 {[%clk 0:03:00.1]} 5...
Bxc3+ {[%clk 0:02:55.2]} 6. Qxc3 {[%clk 0:03:00.6]} 6... Ne4 {[%clk 0:02:53.5]}
7. Qc2 {[%clk 0:03:00.5]} 7... Nc6 {[%clk 0:02:52.1]} 8. Nf3 {[%clk 0:02:58.6]}
8... O-O {[%clk 0:02:47.9]} 9. Bf4 {[%clk 0:02:56.3]} 9... f6 {[%clk 0:02:18.4]}
10. e3 {[%clk 0:02:55.2]} 10... g5 {[%clk 0:02:07.7]} 11. Bg3 {[%clk 0:02:54.3]}
11... Qe7 {[%clk 0:01:55.9]} 12. Bd3 {[%clk 0:02:52.4]} 12... f5 {[%clk
0:01:55.9]} 13. h4 {[%clk 0:02:37.9]} 13... Nxg3 {[%clk 0:01:53.3]} 14. fxg3
{[%clk 0:02:37.3]} 14... g4 {[%clk 0:01:50.4]} 15. Nd2 {[%clk 0:02:31.6]} 15...
Qd6 {[%clk 0:01:48.5]} 16. Kf2 {[%clk 0:02:31]} 16... Ne7 {[%clk 0:01:48.3]} 17.
c5 {[%clk 0:02:29.6]} 17... Qd8 {[%clk 0:01:46.6]} 18. b4 {[%clk 0:02:28.3]}
18... h5 {[%clk 0:01:36.5]} 19. Nb3 {[%clk 0:02:27.8]} 19... Ng6 {[%clk
0:01:32.9]} 20. Nc1 {[%clk 0:02:26.5]} 20... c6 {[%clk 0:01:27.6]} 21. Ne2
{[%clk 0:02:26.1]} 21... e5 {[%clk 0:01:26.7]} 22. dxe5 {[%clk 0:02:25.4]} 22...
Nxe5 {[%clk 0:01:26.9]} 23. Nf4 {[%clk 0:02:25.9]} 23... Qe8 {[%clk 0:01:22.9]}
24. Rhe1 {[%clk 0:02:24]} 24... Qf7 {[%clk 0:01:09.1]} 25. Rad1 {[%clk 0:02:23]}
25... Bd7 {[%clk 0:01:07.6]} 26. Bf1 {[%clk 0:02:21.8]} 26... Rae8 {[%clk
0:01:06.2]} 27. Rd4 {[%clk 0:02:18.5]} 27... Ng6 {[%clk 0:00:55.6]} 28. Nxh5
{[%clk 0:02:10.3]} 28... Nxh4 {[%clk 0:00:54.3]} 29. Nf4 {[%clk 0:02:10.1]}
29... Ng6 {[%clk 0:00:53.8]} 30. Bd3 {[%clk 0:02:08.9]} 30... Nxf4 {[%clk
0:00:45.6]} 31. Rxf4 {[%clk 0:02:07.4]} 31... Qh7 {[%clk 0:00:41.2]} 32. Qb1
{[%clk 0:01:58.8]} 32... Qg7 {[%clk 0:00:36.7]} 33. Rh1 {[%clk 0:01:57.1]} 33...
Qe5 {[%clk 0:00:34.8]} 34. Qc1 {[%clk 0:01:53.5]} 34... Rf7 {[%clk 0:00:32.1]}
35. Qd2 {[%clk 0:01:51.8]} 35... Rh7 {[%clk 0:00:27.2]} 36. Rxh7 {[%clk
0:01:51.2]} 36... Kxh7 {[%clk 0:00:27.7]} 37. Rxg4 {[%clk 0:01:51.6]} 37... Rg8
{[%clk 0:00:21.3]} 38. Rxg8 {[%clk 0:01:49.1]} 38... Kxg8 {[%clk 0:00:21.6]} 39.
Qe2 {[%clk 0:01:49.5]} 39... Be8 {[%clk 0:00:20.7]} 40. Qf3 {[%clk 0:01:46.5]}
40... Bg6 {[%clk 0:00:20.2]} 41. Be2 {[%clk 0:01:44.5]} 41... Qb2 {[%clk
0:00:19.9]} 42. Qf4 {[%clk 0:01:43.9]} 42... Qxa3 {[%clk 0:00:19.3]} 43. Qb8+
{[%clk 0:01:43.3]} 43... Kg7 {[%clk 0:00:18.8]} 44. Qxb7+ {[%clk 0:01:43.5]}
44... Kh6 {[%clk 0:00:18.8]} 45. Qxc6 {[%clk 0:01:39.9]} 45... Qa2 {[%clk
0:00:19.3]} 46. Qd6 {[%clk 0:01:36.7]} 46... Kg7 {[%clk 0:00:19.1]} 47. Qe7+
{[%clk 0:01:36.4]} 47... Kh6 {[%clk 0:00:18.7]} 48. Qf8+ {[%clk 0:01:34.5]}
48... Kg5 {[%clk 0:00:17.7]} 49. Qe7+ {[%clk 0:01:34]} 49... Kh6 {[%clk
0:00:17.9]} 50. c6 {[%clk 0:01:29.6]} 50... f4 {[%clk 0:00:17.4]} 51. gxf4
{[%clk 0:01:27.3]} 51... Bd3 {[%clk 0:00:16.8]} 52. Qe6+ {[%clk 0:01:19.1]}
52... Kg7 {[%clk 0:00:15.3]} 53. Qg4+ {[%clk 0:01:16.5]} 53... Kf6 {[%clk
0:00:10.1]} 54. c7 {[%clk 0:01:16.8]} 54... Qc4 {[%clk 0:00:08.1]} 55. c8=Q
{[%clk 0:01:15.1]} 55... Bxe2 {[%clk 0:00:07.5]} 56. Qxc4 {[%clk 0:01:14.1]}
56... Bxc4 {[%clk 0:00:06.7]} 57. Qd7 {[%clk 0:01:13.5]} 1-0

[Event "*** Titled Tuesday Blitz"]
[Site "Chess.com"]
[Date "2020.05.26"]
[Round "8"]
[White "Klavdia_Nik"]
[Black "pedro_nascimento85"]
[Result "0-1"]
[WhiteElo "2043"]
[BlackElo "1880"]
[TimeControl "180+1"]
[EndTime "11:40:44 PDT"]
[Termination "pedro_nascimento85 won on time"]

1. Nf3 {[%clk 0:02:46.1]} 1... d5 {[%clk 0:02:59.6]} 2. c4 {[%clk 0:02:46.2]}
2... e6 {[%clk 0:02:58.9]} 3. b3 {[%clk 0:02:46.4]} 3... c5 {[%clk 0:02:57.1]}
4. Bb2 {[%clk 0:02:46.5]} 4... d4 {[%clk 0:02:57]} 5. b4 {[%clk 0:02:46.6]} 5...
b6 {[%clk 0:02:56.2]} 6. e3 {[%clk 0:02:40.8]} 6... dxe3 {[%clk 0:02:47.5]} 7.
fxe3 {[%clk 0:02:39.8]} 7... Nf6 {[%clk 0:02:46.7]} 8. bxc5 {[%clk 0:02:33.8]}
8... bxc5 {[%clk 0:02:44.7]} 9. Be2 {[%clk 0:02:34.4]} 9... Be7 {[%clk 0:02:41]}
10. O-O {[%clk 0:02:34.6]} 10... O-O {[%clk 0:02:40.3]} 11. Nc3 {[%clk
0:02:30.5]} 11... Nc6 {[%clk 0:02:39.3]} 12. d4 {[%clk 0:02:15.3]} 12... cxd4
{[%clk 0:02:37.8]} 13. exd4 {[%clk 0:02:15.6]} 13... Qc7 {[%clk 0:02:27.9]} 14.
Qa4 {[%clk 0:01:59.8]} 14... Bb7 {[%clk 0:02:20.8]} 15. Rac1 {[%clk 0:01:31.4]}
15... Rfd8 {[%clk 0:02:16.9]} 16. Rfd1 {[%clk 0:01:31.1]} 16... a6 {[%clk
0:02:10]} 17. Nb1 {[%clk 0:01:27.9]} 17... Na7 {[%clk 0:02:09.1]} 18. Nbd2
{[%clk 0:01:12.2]} 18... Qf4 {[%clk 0:02:06.3]} 19. Nf1 {[%clk 0:01:00.6]} 19...
Rac8 {[%clk 0:01:54.6]} 20. Qb3 {[%clk 0:00:59.2]} 20... Ba8 {[%clk 0:01:51.6]}
21. Qe3 {[%clk 0:00:56.8]} 21... Qxe3+ {[%clk 0:01:46]} 22. Nxe3 {[%clk
0:00:56.5]} 22... Nc6 {[%clk 0:01:36.6]} 23. c5 {[%clk 0:00:24]} 23... Nb4
{[%clk 0:01:30.9]} 24. a3 {[%clk 0:00:19.9]} 24... Nbd5 {[%clk 0:01:30.3]} 25.
Nc4 {[%clk 0:00:20]} 25... Bc6 {[%clk 0:01:25.9]} 26. Nfe5 {[%clk 0:00:19.6]}
26... Bb5 {[%clk 0:01:22.1]} 27. Kf2 {[%clk 0:00:13.7]} 27... Ne4+ {[%clk
0:01:19.3]} 28. Kf3 {[%clk 0:00:11]} 28... Ng5+ {[%clk 0:01:09.1]} 29. Kf2
{[%clk 0:00:11]} 29... Ne4+ {[%clk 0:00:58.2]} 30. Kg1 {[%clk 0:00:10.6]} 30...
Nef6 {[%clk 0:00:59.1]} 31. Bd3 {[%clk 0:00:08.8]} 31... Ne8 {[%clk 0:00:55]}
32. Rd2 {[%clk 0:00:05.4]} 32... Nf4 {[%clk 0:00:52.5]} 33. Bf1 {[%clk
0:00:04.5]} 33... f6 {[%clk 0:00:50.2]} 34. Nb6 {[%clk 0:00:03.8]} 34... fxe5
{[%clk 0:00:46.6]} 35. Nxc8 {[%clk 0:00:03]} 35... Rxc8 {[%clk 0:00:43.6]} 36.
dxe5 {[%clk 0:00:03.1]} 36... Nd5 {[%clk 0:00:43.8]} 37. Bd4 {[%clk 0:00:02.1]}
37... Nec7 {[%clk 0:00:40.6]} 0-1

[Event "*** Titled Tuesday Blitz"]
[Site "Chess.com"]
[Date "2020.05.26"]
[Round "8"]
[White "Denis_Palkovich"]
[Black "KingChess345"]
[Result "1-0"]
[WhiteElo "2307"]
[BlackElo "2177"]
[TimeControl "180+1"]
[EndTime "11:40:45 PDT"]
[Termination "Denis_Palkovich won on time"]

1. d4 {[%clk 0:03:00.9]} 1... Nf6 {[%clk 0:02:58.5]} 2. Bf4 {[%clk 0:02:58.8]}
2... e6 {[%clk 0:02:58.2]} 3. e3 {[%clk 0:02:57.8]} 3... d5 {[%clk 0:02:58.7]}
4. Nd2 {[%clk 0:02:58.2]} 4... Bd6 {[%clk 0:02:59.2]} 5. Bd3 {[%clk 0:02:57.7]}
5... O-O {[%clk 0:02:58.5]} 6. Ngf3 {[%clk 0:02:57.4]} 6... c5 {[%clk
0:02:58.4]} 7. c3 {[%clk 0:02:57.1]} 7... Nc6 {[%clk 0:02:57.8]} 8. Ne5 {[%clk
0:02:56.8]} 8... Qc7 {[%clk 0:02:56.2]} 9. Ndf3 {[%clk 0:02:40.9]} 9... b6
{[%clk 0:02:31]} 10. Nxc6 {[%clk 0:02:35.6]} 10... Qxc6 {[%clk 0:02:31.9]} 11.
Ne5 {[%clk 0:02:35.5]} 11... Qc7 {[%clk 0:02:28.9]} 12. Qf3 {[%clk 0:02:35.3]}
12... Bb7 {[%clk 0:02:25.5]} 13. Qh3 {[%clk 0:02:34.9]} 13... Rac8 {[%clk
0:02:04.1]} 14. g4 {[%clk 0:02:34]} 14... g6 {[%clk 0:01:44.2]} 15. Qg3 {[%clk
0:02:27.8]} 15... Nd7 {[%clk 0:01:35.3]} 16. Nxg6 {[%clk 0:02:17.8]} 16... Bxf4
{[%clk 0:01:26.3]} 17. Nxf4 {[%clk 0:02:12.4]} 17... cxd4 {[%clk 0:01:16]} 18.
exd4 {[%clk 0:01:56]} 18... e5 {[%clk 0:01:16.3]} 19. dxe5 {[%clk 0:01:49.1]}
19... Qxe5+ {[%clk 0:01:17.2]} 20. Ne2 {[%clk 0:01:32.9]} 20... d4 {[%clk
0:01:11.9]} 21. O-O {[%clk 0:01:04.1]} 21... Qd5 {[%clk 0:00:52.3]} 22. f3
{[%clk 0:00:52.2]} 22... dxc3 {[%clk 0:00:49.9]} 23. Nf4 {[%clk 0:00:49.5]}
23... Qd4+ {[%clk 0:00:37.3]} 24. Kg2 {[%clk 0:00:48.6]} 24... cxb2 {[%clk
0:00:19.2]} 25. Rad1 {[%clk 0:00:48.1]} 25... Qe5 {[%clk 0:00:14.5]} 26. Rfe1
{[%clk 0:00:34.5]} 26... Qg5 {[%clk 0:00:13.8]} 27. h4 {[%clk 0:00:31.1]} 27...
Qg7 {[%clk 0:00:12.4]} 28. Nh5 {[%clk 0:00:29.6]} 28... Qh8 {[%clk 0:00:12.1]}
29. Bxh7+ {[%clk 0:00:26.7]} 29... Kxh7 {[%clk 0:00:10.5]} 30. Rxd7 {[%clk
0:00:27.6]} 30... Rc2+ {[%clk 0:00:09]} 31. Kh3 {[%clk 0:00:27.2]} 31... b1=Q
{[%clk 0:00:07]} 32. Rxb1 {[%clk 0:00:26.1]} 32... Rc3 {[%clk 0:00:06.6]} 33.
Rf1 {[%clk 0:00:21.5]} 33... Kg8 {[%clk 0:00:02.2]} 34. Rxb7 {[%clk 0:00:20.4]}
1-0

[Event "*** Titled Tuesday Blitz"]
[Site "Chess.com"]
[Date "2020.05.26"]
[Round "8"]
[White "stanyga"]
[Black "Roaccutane"]
[Result "1-0"]
[WhiteElo "2628"]
[BlackElo "2711"]
[TimeControl "180+1"]
[EndTime "11:40:47 PDT"]
[Termination "stanyga won on time"]

1. e4 {[%clk 0:03:00.9]} 1... d6 {[%clk 0:02:59.6]} 2. d4 {[%clk 0:02:58.8]}
2... Nf6 {[%clk 0:02:59.3]} 3. Nc3 {[%clk 0:02:57.8]} 3... g6 {[%clk 0:02:59.4]}
4. f4 {[%clk 0:02:57.4]} 4... Bg7 {[%clk 0:02:59.3]} 5. Nf3 {[%clk 0:02:57.8]}
5... O-O {[%clk 0:02:59.4]} 6. Bd3 {[%clk 0:02:56.6]} 6... Na6 {[%clk
0:02:59.3]} 7. Bxa6 {[%clk 0:02:51.8]} 7... bxa6 {[%clk 0:02:55.5]} 8. O-O
{[%clk 0:02:50.8]} 8... Rb8 {[%clk 0:02:51.7]} 9. d5 {[%clk 0:02:49.3]} 9... c6
{[%clk 0:02:43.5]} 10. Kh1 {[%clk 0:02:43.2]} 10... cxd5 {[%clk 0:02:43.2]} 11.
exd5 {[%clk 0:02:42.4]} 11... Qc7 {[%clk 0:02:36.9]} 12. Rb1 {[%clk 0:02:33.6]}
12... Bg4 {[%clk 0:02:19]} 13. Be3 {[%clk 0:02:31.3]} 13... a5 {[%clk
0:02:05.6]} 14. h3 {[%clk 0:02:22.8]} 14... Bd7 {[%clk 0:02:00.9]} 15. Nd4
{[%clk 0:02:16]} 15... a6 {[%clk 0:01:57.7]} 16. Qf3 {[%clk 0:02:13.3]} 16... a4
{[%clk 0:01:47.1]} 17. a3 {[%clk 0:02:04.9]} 17... Qc4 {[%clk 0:01:28.8]} 18.
Rfe1 {[%clk 0:01:43.4]} 18... Rfe8 {[%clk 0:01:10.4]} 19. Bf2 {[%clk 0:01:37.4]}
19... Rbc8 {[%clk 0:00:56.1]} 20. Rbd1 {[%clk 0:01:19.6]} 20... Bf5 {[%clk
0:00:33.1]} 21. Nxf5 {[%clk 0:01:09.9]} 21... gxf5 {[%clk 0:00:32.9]} 22. Rd4
{[%clk 0:01:09.1]} 22... Qc7 {[%clk 0:00:29.9]} 23. Rxa4 {[%clk 0:01:06.7]}
23... Ne4 {[%clk 0:00:21.6]} 24. Nxe4 {[%clk 0:01:04.5]} 24... fxe4 {[%clk
0:00:22.5]} 25. Raxe4 {[%clk 0:01:00.2]} 25... Qxc2 {[%clk 0:00:23]} 26. Rxe7
{[%clk 0:00:53.6]} 26... Rxe7 {[%clk 0:00:20.4]} 27. Rxe7 {[%clk 0:00:52.6]}
27... Qxb2 {[%clk 0:00:17.3]} 28. Kh2 {[%clk 0:00:39.5]} 28... Qf6 {[%clk
0:00:12.5]} 29. Ra7 {[%clk 0:00:37.3]} 29... h5 {[%clk 0:00:12.6]} 30. Qxh5
{[%clk 0:00:34.5]} 30... Qxf4+ {[%clk 0:00:12]} 31. Bg3 {[%clk 0:00:34]} 31...
Qf6 {[%clk 0:00:10.5]} 32. Rxa6 {[%clk 0:00:32.4]} 32... Rd8 {[%clk 0:00:03.6]}
33. Bh4 {[%clk 0:00:29.4]} 33... Qf4+ {[%clk 0:00:02.2]} 34. Bg3 {[%clk
0:00:29.5]} 34... Qf6 {[%clk 0:00:02.4]} 35. Qh4 {[%clk 0:00:29.3]} 1-0

[Event "*** Titled Tuesday Blitz"]
[Site "Chess.com"]
[Date "2020.05.26"]
[Round "8"]
[White "Norival"]
[Black "Shota_Azaladze"]
[Result "0-1"]
[WhiteElo "2655"]
[BlackElo "2837"]
[TimeControl "180+1"]
[EndTime "11:40:48 PDT"]
[Termination "Shota_Azaladze won on time"]

1. d4 {[%clk 0:03:00.9]} 1... g6 {[%clk 0:02:58.7]} 2. Nf3 {[%clk 0:03:01]} 2...
Bg7 {[%clk 0:02:59.1]} 3. e3 {[%clk 0:03:01.1]} 3... f5 {[%clk 0:02:58.9]} 4. c4
{[%clk 0:03:00.3]} 4... Nf6 {[%clk 0:02:59.2]} 5. Nc3 {[%clk 0:03:00.2]} 5...
O-O {[%clk 0:02:59.8]} 6. b4 {[%clk 0:03:00.5]} 6... e6 {[%clk 0:02:58]} 7. Bb2
{[%clk 0:03:00.6]} 7... Qe7 {[%clk 0:02:58]} 8. Qb3 {[%clk 0:03:00.1]} 8... d6
{[%clk 0:02:58]} 9. Be2 {[%clk 0:02:59.5]} 9... Kh8 {[%clk 0:02:57.7]} 10. O-O
{[%clk 0:02:59.2]} 10... b6 {[%clk 0:02:54.9]} 11. a4 {[%clk 0:02:55.1]} 11...
a5 {[%clk 0:02:54.2]} 12. b5 {[%clk 0:02:55.1]} 12... Bb7 {[%clk 0:02:54]} 13.
Rac1 {[%clk 0:02:51.6]} 13... Nbd7 {[%clk 0:02:53.3]} 14. Rfd1 {[%clk
0:02:51.2]} 14... Ne4 {[%clk 0:02:52.7]} 15. Ba3 {[%clk 0:02:41.3]} 15... g5
{[%clk 0:02:50.6]} 16. Ne1 {[%clk 0:02:35.2]} 16... g4 {[%clk 0:02:40.8]} 17.
Nd3 {[%clk 0:02:34.9]} 17... Qh4 {[%clk 0:02:37.9]} 18. g3 {[%clk 0:01:55.7]}
18... Qh6 {[%clk 0:02:34.1]} 19. Nxe4 {[%clk 0:01:38.9]} 19... fxe4 {[%clk
0:02:29.4]} 20. Nf4 {[%clk 0:01:37.7]} 20... e5 {[%clk 0:02:24.8]} 21. dxe5
{[%clk 0:01:37.3]} 21... Nxe5 {[%clk 0:02:24.3]} 22. Bb2 {[%clk 0:01:34]} 22...
Rf7 {[%clk 0:02:17.3]} 23. Rd2 {[%clk 0:01:32.4]} 23... Rg8 {[%clk 0:02:05]} 24.
c5 {[%clk 0:01:15.6]} 24... Rxf4 {[%clk 0:01:33.4]} 25. exf4 {[%clk 0:01:14.7]}
25... Nf3+ {[%clk 0:01:00.3]} 26. Bxf3 {[%clk 0:01:13.2]} 26... gxf3 {[%clk
0:01:01.2]} 27. Bxg7+ {[%clk 0:00:50.5]} 27... Rxg7 {[%clk 0:01:02.1]} 28. Qd1
{[%clk 0:00:50.4]} 28... bxc5 {[%clk 0:00:29.5]} 29. b6 {[%clk 0:00:48.5]} 29...
e3 {[%clk 0:00:27.6]} 30. bxc7 {[%clk 0:00:05.4]} 30... exd2 {[%clk 0:00:21.2]}
31. Rb1 {[%clk 0:00:03.5]} 31... Rxc7 {[%clk 0:00:20.9]} 32. Qxd2 {[%clk
0:00:02.6]} 32... Qh3 {[%clk 0:00:20.4]} 33. Qc3+ {[%clk 0:00:02.5]} 33... Kg8
{[%clk 0:00:20.4]} 34. Qc4+ {[%clk 0:00:01.5]} 34... Kf8 {[%clk 0:00:20.6]} 0-1

[Event "*** Titled Tuesday Blitz"]
[Site "Chess.com"]
[Date "2020.05.26"]
[Round "8"]
[White "VladimirBugayev"]
[Black "LostaBet95"]
[Result "0-1"]
[WhiteElo "2179"]
[BlackElo "2511"]
[TimeControl "180+1"]
[EndTime "11:40:48 PDT"]
[Termination "LostaBet95 won on time"]

1. e4 {[%clk 0:03:00]} 1... c5 {[%clk 0:02:58.2]} 2. c3 {[%clk 0:02:58.1]} 2...
e6 {[%clk 0:02:53.3]} 3. d4 {[%clk 0:02:57.7]} 3... cxd4 {[%clk 0:02:54]} 4.
cxd4 {[%clk 0:02:57.7]} 4... d5 {[%clk 0:02:54.9]} 5. e5 {[%clk 0:02:54.6]} 5...
Nc6 {[%clk 0:02:53.4]} 6. Bb5 {[%clk 0:02:53]} 6... Ne7 {[%clk 0:02:50.5]} 7.
Nc3 {[%clk 0:02:52.3]} 7... Bd7 {[%clk 0:02:49]} 8. Nge2 {[%clk 0:02:42.2]} 8...
a6 {[%clk 0:02:39.2]} 9. Bxc6 {[%clk 0:02:40.2]} 9... Nxc6 {[%clk 0:02:34.1]}
10. O-O {[%clk 0:02:33.1]} 10... b5 {[%clk 0:02:33.6]} 11. Ng3 {[%clk 0:02:10]}
11... g6 {[%clk 0:02:28]} 12. Nce2 {[%clk 0:01:58.9]} 12... h5 {[%clk
0:02:24.3]} 13. f4 {[%clk 0:01:49.5]} 13... Qb6 {[%clk 0:02:21.8]} 14. Be3
{[%clk 0:01:47.8]} 14... h4 {[%clk 0:02:12.9]} 15. Nh1 {[%clk 0:01:46.2]} 15...
Be7 {[%clk 0:02:10.6]} 16. Nf2 {[%clk 0:01:44.5]} 16... Rc8 {[%clk 0:02:02.4]}
17. Nd3 {[%clk 0:01:18]} 17... Nb4 {[%clk 0:01:54.5]} 18. Nc5 {[%clk 0:01:15.3]}
18... a5 {[%clk 0:01:46.3]} 19. a3 {[%clk 0:01:08.8]} 19... Na6 {[%clk 0:01:44]}
20. Nxd7 {[%clk 0:00:54.2]} 20... Kxd7 {[%clk 0:01:42.6]} 21. Qd2 {[%clk
0:00:52.1]} 21... Rc4 {[%clk 0:01:33.9]} 22. b3 {[%clk 0:00:45.6]} 22... Rc6
{[%clk 0:01:31.8]} 23. Rfc1 {[%clk 0:00:44.5]} 23... Rhc8 {[%clk 0:01:30.7]} 24.
Rxc6 {[%clk 0:00:43.6]} 24... Qxc6 {[%clk 0:01:31.6]} 25. Qxa5 {[%clk
0:00:39.3]} 25... b4 {[%clk 0:01:27.5]} 26. axb4 {[%clk 0:00:36.5]} 26... Nxb4
{[%clk 0:01:27.3]} 27. Qa4 {[%clk 0:00:32.1]} 27... Qxa4 {[%clk 0:01:05.7]} 28.
Rxa4 {[%clk 0:00:30.6]} 28... Rc2 {[%clk 0:01:04.2]} 29. Kf1 {[%clk 0:00:23.5]}
29... Rb2 {[%clk 0:00:58]} 30. Nc1 {[%clk 0:00:18.5]} 30... Nc2 {[%clk
0:00:34.6]} 31. Bd2 {[%clk 0:00:03.9]} 31... Nxd4 {[%clk 0:00:16]} 32. Ra7+
{[%clk 0:00:03.7]} 32... Kc8 {[%clk 0:00:13.2]} 33. Rxe7 {[%clk 0:00:02.2]}
33... Rxd2 {[%clk 0:00:13.2]} 34. Rxf7 {[%clk 0:00:01.9]} 34... Rd1+ {[%clk
0:00:13.3]} 35. Kf2 {[%clk 0:00:01.4]} 35... Rxc1 {[%clk 0:00:14.2]} 0-1

[Event "*** Titled Tuesday Blitz"]
[Site "Chess.com"]
[Date "2020.05.26"]
[Round "8"]
[White "mbachez"]
[Black "bakki78"]
[Result "0-1"]
[WhiteElo "2529"]
[BlackElo "2751"]
[TimeControl "180+1"]
[EndTime "11:40:49 PDT"]
[Termination "bakki78 won on time"]

1. e4 {[%clk 0:03:00.9]} 1... c5 {[%clk 0:02:58.8]} 2. Nf3 {[%clk 0:02:51.5]}
2... Nc6 {[%clk 0:02:58.2]} 3. Bb5 {[%clk 0:02:51.2]} 3... Nf6 {[%clk
0:02:57.7]} 4. Qe2 {[%clk 0:02:49.5]} 4... Qc7 {[%clk 0:02:54.7]} 5. O-O {[%clk
0:02:48.4]} 5... g6 {[%clk 0:02:41.7]} 6. c3 {[%clk 0:02:47.8]} 6... Bg7 {[%clk
0:02:39.5]} 7. d4 {[%clk 0:02:47.5]} 7... O-O {[%clk 0:02:38.6]} 8. e5 {[%clk
0:02:23.7]} 8... Nd5 {[%clk 0:02:36]} 9. c4 {[%clk 0:02:21.9]} 9... Ndb4 {[%clk
0:02:07.4]} 10. a3 {[%clk 0:02:15.2]} 10... Na6 {[%clk 0:02:06.8]} 11. Nc3
{[%clk 0:00:49.8]} 11... Nxd4 {[%clk 0:01:09.5]} 12. Nxd4 {[%clk 0:00:49.4]}
12... cxd4 {[%clk 0:01:10.1]} 13. Nd5 {[%clk 0:00:49.6]} 13... Qxe5 {[%clk
0:01:10.1]} 14. Qf3 {[%clk 0:00:49.9]} 14... e6 {[%clk 0:00:59.4]} 15. Bf4
{[%clk 0:00:47.8]} 15... Qh5 {[%clk 0:00:57.3]} 16. g4 {[%clk 0:00:41.6]} 16...
Qh4 {[%clk 0:00:55.2]} 17. Bg3 {[%clk 0:00:23.7]} 17... Qd8 {[%clk 0:00:49.3]}
18. Bxa6 {[%clk 0:00:17.1]} 18... exd5 {[%clk 0:00:38.2]} 19. Qxd5 {[%clk
0:00:16.7]} 19... Qb6 {[%clk 0:00:30.4]} 20. Bb5 {[%clk 0:00:16]} 20... a6
{[%clk 0:00:30.8]} 21. Bd6 {[%clk 0:00:15.8]} 21... axb5 {[%clk 0:00:28.8]} 22.
Bxf8 {[%clk 0:00:13.9]} 22... Bxf8 {[%clk 0:00:28.8]} 23. cxb5 {[%clk
0:00:11.6]} 23... d6 {[%clk 0:00:28.8]} 24. Rfd1 {[%clk 0:00:08.1]} 24... Bg7
{[%clk 0:00:26.6]} 25. a4 {[%clk 0:00:08.3]} 25... Be6 {[%clk 0:00:23.8]} 26.
Qf3 {[%clk 0:00:08.2]} 26... Be5 {[%clk 0:00:19.5]} 27. Rac1 {[%clk 0:00:07.8]}
27... Rxa4 {[%clk 0:00:18.5]} 28. h4 {[%clk 0:00:07]} 28... Qxb5 {[%clk
0:00:17.3]} 29. g5 {[%clk 0:00:05.6]} 29... Qd5 {[%clk 0:00:17]} 30. Qe2 {[%clk
0:00:01.8]} 30... Bh3 {[%clk 0:00:13.8]} 31. f3 {[%clk 0:00:01.5]} 31... h6
{[%clk 0:00:13.7]} 0-1